fUST/lending_fUST_20250506
["ID","MTS","AMOUNT","RATE_DAILY","PERIOD"]
[360047361,1746517028369,-529.93490637,0.00012919,2]
[360047362,1746517028411,-48.2091285,0.00013012,2]
[360047366,1746517112263,-173.68154185,0.00013013,2]
[360047367,1746517142164,-8.36207567,0.00013013,2]
[360047368,1746517142200,-291.63792433,0.00013013,2]
[360047369,1746517147284,-156.31073415,0.00013012,2]
[360047386,1746517323597,-218.93292221,0.00012919,2]
[360047387,1746517324178,-218.93292221,0.00012919,2]
[360047388,1746517329606,-500.0,0.00012919,2]
[360047389,1746517338669,-129.4944339,0.00012919,2]
[360047390,1746517338709,-170.5055661,0.00013007,2]
[360047394,1746517565517,-1200.0,0.00012015,2]
[360047395,1746517565560,-300.0,0.00012015,2]
[360047396,1746517565601,-500.0,0.00012016,2]
[360047397,1746517565642,-596.7574581,0.00012016,2]
[360047398,1746517565683,-186.86794338,0.00012016,2]
[360047399,1746517565725,-470.7153703,0.00012016,2]
[360047400,1746517565780,-500.0,0.00012016,2]
[360047401,1746517565836,-500.0,0.00012016,2]
[360047402,1746517565894,-259.65922822,0.00012016,2]
[360047403,1746517751126,-774.38864605,0.00011916,2]
[360047404,1746517751165,-500.0,0.00012014,2]
[360047405,1746517751203,-500.0,0.00012014,2]
[360047406,1746517751240,-500.0,0.00012014,2]
[360047407,1746517751268,-300.0,0.00012014,2]
[360047408,1746517751291,-534.16809263,0.00012015,2]
[360047409,1746517751313,-500.0,0.00012015,2]
[360047410,1746517751339,-341.07867374,0.00012015,2]
[360047411,1746517751359,-226.5882376,0.00012016,2]
[360047412,1746517751381,-10927.54320998,0.00012017,2]
[360047442,1746517831785,-300.0,0.00012013,2]
[360047444,1746517831794,-500.0,0.00012014,2]
[360047445,1746517831804,-466.534856,0.00012014,2]
[360047446,1746517831813,-500.0,0.00012014,2]
[360047447,1746517831822,-500.0,0.00012014,2]
[360047448,1746517831831,-500.0,0.00012014,2]
[360047449,1746517831840,-500.0,0.00012014,2]
[360047450,1746517831850,-500.0,0.00012014,2]
[360047451,1746517831859,-500.0,0.00012014,2]
[360047452,1746517831868,-500.0,0.00012014,2]
[360047453,1746517831877,-500.0,0.00012014,2]
[360047454,1746517831887,-500.0,0.00012014,2]
[360047455,1746517831896,-500.0,0.00012014,2]
[360047456,1746517831905,-500.0,0.00012014,2]
[360047457,1746517831914,-500.0,0.00012014,2]
[360047458,1746517831923,-500.0,0.00012014,2]
[360047459,1746517831933,-500.0,0.00012014,2]
[360047460,1746517831942,-500.0,0.00012014,2]
[360047461,1746517831951,-500.0,0.00012014,2]
[360047462,1746517831960,-500.0,0.00012014,2]
[360047463,1746517831970,-332.94838075,0.00012014,2]
[360047464,1746517831979,-500.0,0.00012014,2]
[360047465,1746517831988,-500.0,0.00012014,2]
[360047466,1746517831997,-500.0,0.00012014,2]
[360047467,1746517832006,-500.0,0.00012014,2]
[360047468,1746517832015,-500.0,0.00012014,2]
[360047469,1746517832025,-500.0,0.00012014,2]
[360047470,1746517832034,-500.0,0.00012014,2]
[360047471,1746517832043,-50000.0,0.00012014,2]
[360047472,1746517832053,-13972.45679002,0.00012017,2]
[360047473,1746517832062,-124.15192086,0.00012907,2]
[360047474,1746517832335,-122.2041741,0.00012907,2]
[360047475,1746517832344,-325.98778657,0.00013013,2]
[360047476,1746517832355,-151.0,0.00013022,2]
[360047477,1746517832364,-151.0,0.00013022,2]
[360047478,1746517832373,-151.0,0.00013022,2]
[360047479,1746517832385,-151.0,0.00013022,2]
[360047480,1746517832394,-18.70732911,0.00013116,2]
[360047481,1746517832406,-339.49796289,0.00013116,2]
[360047482,1746517832415,-358.205292,0.00013116,2]
[360047483,1746517832425,-151.0,0.00013116,2]
[360047484,1746517832434,-151.0,0.00013116,2]
[360047485,1746517832444,-151.0,0.00013116,2]
[360047486,1746517832453,-151.0,0.00013116,2]
[360047487,1746517832463,-155.0,0.00013329,2]
[360047488,1746517832472,-1335.8995513,0.00013698,2]
[360047489,1746517832482,-151.0,0.00013699,2]
[360047490,1746517832491,-151.0,0.00013699,2]
[360047491,1746517832501,-151.0,0.00013699,2]
[360047492,1746517832510,-151.0,0.00013699,2]
[360047493,1746517832520,-179.860818,0.00013699,2]
[360047494,1746517832529,-250.853281,0.00013699,2]
[360047495,1746517832539,-1354.5765697,0.00013699,2]
[360047496,1746517832548,-358.205292,0.00013714,2]
[360047497,1746517832557,-358.205292,0.00013714,2]
[360047498,1746517832566,-151.0,0.00013714,2]
[360047499,1746517832576,-151.0,0.00013714,2]
[360047500,1746517832585,-383.96217543,0.00013965,2]
[360047501,1746517832594,-151.0,0.00014022,2]
[360047502,1746517832604,-151.0,0.00014022,2]
[360047503,1746517832613,-151.0,0.00014023,2]
[360047504,1746517832622,-358.205292,0.00014026,2]
[360047505,1746517832634,-358.205292,0.00014026,2]
[360047506,1746517832643,-151.0,0.00014026,2]
[360047507,1746517832652,-151.0,0.00014026,2]
[360047508,1746517832663,-155.0,0.00014109,2]
[360047509,1746517832672,-151.0,0.00014236,2]
[360047510,1746517832682,-298.037915,0.00014236,2]
[360047511,1746517832691,-151.0,0.00014323,2]
[360047512,1746517832701,-358.205292,0.00014672,2]
[360047513,1746517832710,-358.205292,0.00014672,2]
[360047514,1746517832719,-151.0,0.00014672,2]
[360047515,1746517832729,-151.0,0.00014672,2]
[360047516,1746517832738,-500.0,0.00014864,2]
[360047517,1746517832747,-500.0,0.00014864,2]
[360047518,1746517832757,-500.0,0.00014864,2]
[360047519,1746517832766,-500.0,0.00014864,2]
[360047520,1746517832775,-500.0,0.00014864,2]
[360047521,1746517832785,-196.06350416,0.00014864,2]
[360047522,1746517832794,-501.1147048,0.00014864,2]
[360047523,1746517832804,-500.0,0.00014864,2]
[360047524,1746517832813,-500.0,0.00014864,2]
[360047525,1746517832823,-500.0,0.00014864,2]
[360047526,1746517832832,-500.98319267,0.00014864,2]
[360047527,1746517832841,-502.72871612,0.00014864,2]
[360047528,1746517832851,-500.0,0.00014864,2]
[360047529,1746517832860,-500.0,0.00014864,2]
[360047530,1746517832870,-500.0,0.00014864,2]
[360047531,1746517832880,-500.0,0.00014864,2]
[360047532,1746517832889,-500.0,0.00014864,2]
[360047533,1746517832899,-500.0,0.00014864,2]
[360047534,1746517832908,-500.0,0.00014864,2]
[360047535,1746517832918,-500.0,0.00014864,2]
[360047536,1746517832927,-500.0,0.00014864,2]
[360047537,1746517832937,-500.0,0.00014864,2]
[360047538,1746517832946,-500.0,0.00014864,2]
[360047539,1746517832956,-500.0,0.00014873,2]
[360047540,1746517832966,-503.56528475,0.00014914,2]
[360047541,1746517832975,-170.44557392,0.00014918,2]
[360047542,1746517832985,-151.0,0.00015,2]
[360047543,1746517832994,-151.0,0.00015,2]
[360047544,1746517833004,-358.205292,0.00015018,2]
[360047545,1746517833014,-358.205292,0.00015018,2]
[360047546,1746517833023,-151.0,0.00015018,2]
[360047547,1746517833033,-151.0,0.00015018,2]
[360047548,1746517833042,-500.0,0.00015029,2]
[360047549,1746517833052,-1094.7037603,0.00015073,2]
[360047550,1746517833062,-500.0,0.00015121,2]
[360047551,1746517833071,-500.0,0.00015121,2]
[360047552,1746517833081,-500.0,0.00015121,2]
[360047553,1746517833091,-151.0,0.00015166,2]
[360047554,1746517833100,-500.0,0.00015173,2]
[360047555,1746517833110,-500.0,0.00015173,2]
[360047556,1746517833119,-500.0,0.00015173,2]
[360047557,1746517833129,-500.0,0.00015173,2]
[360047558,1746517833139,-500.0,0.00015173,2]
[360047559,1746517833148,-501.70084382,0.00015183,2]
[360047560,1746517833157,-500.0,0.00015183,2]
[360047561,1746517833167,-500.0,0.00015343,2]
[360047562,1746517833177,-500.0,0.00015343,2]
[360047563,1746517833186,-500.0,0.00015343,2]
[360047564,1746517833196,-500.0,0.00015343,2]
[360047565,1746517833206,-151.0,0.00015379,2]
[360047566,1746517833215,-500.0,0.000154,2]
[360047567,1746517833225,-170.44557392,0.00015409,2]
[360047568,1746517833234,-358.205292,0.0001565,2]
[360047569,1746517833244,-358.205292,0.0001565,2]
[360047570,1746517833253,-151.0,0.0001565,2]
[360047571,1746517833263,-151.0,0.0001565,2]
[360047572,1746517833272,-151.0,0.0001565,2]
[360047573,1746517833281,-155.0,0.00015753,2]
[360047574,1746517833290,-151.0,0.00015773,2]
[360047575,1746517833299,-358.205292,0.000158,2]
[360047576,1746517833309,-358.205292,0.000158,2]
[360047577,1746517833319,-358.205292,0.000158,2]
[360047578,1746517833330,-358.205292,0.000158,2]
[360047579,1746517833340,-358.205292,0.000158,2]
[360047580,1746517833349,-358.205292,0.000158,2]
[360047581,1746517833358,-151.0,0.000158,2]
[360047582,1746517833368,-151.0,0.000158,2]
[360047583,1746517833378,-151.0,0.000158,2]
[360047584,1746517833390,-151.0,0.000158,2]
[360047585,1746517833400,-151.0,0.000158,2]
[360047586,1746517833412,-195.558948,0.000158,2]
[360047587,1746517833422,-151.0,0.000158,2]
[360047588,1746517833431,-151.0,0.000158,2]
[360047589,1746517833441,-151.0,0.000158,2]
[360047590,1746517833451,-439.41812235,0.00015866,2]
[360047591,1746517833460,-189.85827677,0.000159,2]
[360047592,1746517833469,-170.44557392,0.000159,2]
[360047593,1746517833479,-500.0,0.00015973,2]
[360047594,1746517833489,-358.205292,0.00015973,2]
[360047595,1746517833499,-358.205292,0.00015973,2]
[360047596,1746517833509,-151.0,0.00015973,2]
[360047597,1746517833518,-1211.46893418,0.0001599,3]
[360047598,1746517833633,-467.09929999,0.0001599,3]
[360047624,1746517837799,-686.08065712,0.0001599,3]
[360047626,1746517837811,-941.96110871,0.0001599,3]
[360047628,1746517837821,-1369.16509183,0.0001599,3]
[360047641,1746517837929,-284.14490817,0.0001599,3]
[360047643,1746517837939,-54.13287906,0.0001599,3]
[360047645,1746517837951,-772.51712094,0.0001599,3]
[360047648,1746517837962,-290.82336818,0.0001599,3]
[360047651,1746517837973,-122.50663182,0.0001599,3]
[360047653,1746517837983,-206.66,0.0001599,3]
[360047655,1746517837992,-620.02,0.0001599,3]
[360047657,1746517838002,-84.59364678,0.00016,2]
[360047659,1746517838015,-606.32114221,0.00016,2]
[360047661,1746517838027,-4984.69140695,0.00016,2]
[360047662,1746517838039,-12609.35609444,0.00016,2]
[360047772,1746517840728,-493.28256153,0.00016,2]
[360048196,1746517845802,-178258.34879487,0.00016,2]
[360048197,1746517845812,-46982.0,0.00016,2]
[360048198,1746517845822,-151.0,0.00016,2]
[360048199,1746517845831,-151.0,0.00016,2]
[360048200,1746517845841,-151.0,0.00016,2]
[360048202,1746517845850,-151.0,0.00016,2]
[360048203,1746517845859,-228.528526,0.00016,2]
[360048204,1746517845868,-450.0,0.00016,2]
[360048205,1746517845877,-450.0,0.00016,2]
[360048206,1746517845887,-450.0,0.00016,2]
[360048207,1746517845896,-450.0,0.00016,2]
[360048208,1746517845905,-450.0,0.00016,2]
[360048209,1746517845915,-450.0,0.00016,2]
[360048210,1746517845925,-151.0,0.00016,2]
[360048211,1746517845935,-151.0,0.00016,2]
[360048212,1746517845944,-151.0,0.00016,2]
[360048213,1746517845953,-151.0,0.00016,2]
[360048214,1746517845962,-222.133944,0.00016,2]
[360048215,1746517845972,-152.415534,0.00016,2]
[360048216,1746517845981,-151.0,0.00016,2]
[360048217,1746517845990,-151.0,0.00016,2]
[360048218,1746517846000,-151.0,0.00016,2]
[360048219,1746517846009,-151.0,0.00016,2]
[360048220,1746517846018,-154.859143,0.00016,2]
[360048222,1746517846027,-154.859143,0.00016,2]
[360048223,1746517846036,-361.481341,0.00016,2]
[360048224,1746517846046,-361.481341,0.00016,2]
[360048225,1746517846055,-475.513668,0.00016,2]
[360048226,1746517846064,-475.513668,0.00016,2]
[360048227,1746517846073,-782.321513,0.00016,2]
[360048228,1746517846083,-782.321513,0.00016,2]
[360048229,1746517846092,-151.0,0.00016,2]
[360048230,1746517846102,-151.0,0.00016,2]
[360048231,1746517846111,-151.0,0.00016,2]
[360048232,1746517846120,-151.0,0.00016,2]
[360048233,1746517846129,-151.0,0.00016,2]
[360048234,1746517846139,-151.0,0.00016,2]
[360048235,1746517846148,-151.0,0.00016,2]
[360048236,1746517846157,-224.180359,0.00016,2]
[360048237,1746517846344,-151.0,0.00016,2]
[360048238,1746517846357,-345.785647,0.00016,2]
[360048239,1746517846366,-345.785647,0.00016,2]
[360048240,1746517846374,-151.0,0.00016,2]
[360048241,1746517846383,-1250.38501812,0.00016032,2]
[360048242,1746517846393,-155.0,0.00016164,2]
[360048243,1746517846403,-189.85827677,0.000164,2]
[360048244,1746517846411,-151.0,0.00016438,2]
[360048245,1746517846421,-151.0,0.00016438,2]
[360048246,1746517846431,-151.0,0.00016438,2]
[360048247,1746517846441,-151.0,0.00016438,2]
[360048248,1746517846451,-151.0,0.00016438,2]
[360048249,1746517846460,-151.0,0.00016438,2]
[360048250,1746517846470,-151.0,0.00016438,2]
[360048251,1746517846480,-272.817181,0.00016438,2]
[360048252,1746517846489,-151.0,0.00016438,2]
[360048253,1746517846499,-151.0,0.000165,2]
[360048254,1746517846508,-159.4189483,0.00016603,2]
[360048255,1746517846517,-153.0,0.00016603,2]
[360048256,1746517846528,-153.0,0.00016603,2]
[360048257,1746517846538,-19478.38597888,0.000168,2]
[360048258,1746517846547,-151.0,0.000168,2]
[360048259,1746517846557,-151.62122,0.000168,2]
[360048260,1746517846567,-186.399095,0.000168,2]
[360048261,1746517846577,-186.399095,0.000168,2]
[360048262,1746517846586,-151.0,0.000168,2]
[360048263,1746517846596,-151.0,0.000168,2]
[360048264,1746517846606,-238.25653383,0.000169,2]
[360048265,1746517846615,-189.85827677,0.000169,2]
[360048266,1746517846624,-501.19926394,0.00016917,2]
[360048267,1746517846634,-500.0,0.00016917,2]
[360048268,1746517846644,-361.481341,0.00016917,2]
[360048269,1746517846653,-361.481341,0.00016917,2]
[360048270,1746517846663,-80180.95742901,0.00016987,2]
[360048271,1746517846673,-151.0,0.00016987,2]
[360048272,1746517846682,-151.0,0.00016987,2]
[360048273,1746517846692,-450.0,0.00016987,2]
[360048274,1746517846701,-450.0,0.00016987,2]
[360048275,1746517846710,-151.0,0.00016987,2]
[360048276,1746517846719,-151.0,0.00016987,2]
[360048277,1746517846728,-161.831574,0.00016987,2]
[360048278,1746517846738,-186.399095,0.00016987,2]
[360048279,1746517846747,-186.399095,0.00016987,2]
[360048280,1746517846756,-152.644935,0.00016987,2]
[360048281,1746517846766,-151.0,0.00016987,2]
[360048282,1746517846775,-151.0,0.00016987,2]
[360048283,1746517846784,-154.859143,0.00016987,2]
[360048284,1746517846794,-154.859143,0.00016987,2]
[360048285,1746517846802,-361.481341,0.00016987,2]
[360048286,1746517846811,-361.481341,0.00016987,2]
[360048287,1746517846821,-475.513668,0.00016987,2]
[360048288,1746517846830,-475.513668,0.00016987,2]
[360048289,1746517846839,-782.321513,0.00016987,2]
[360048290,1746517846848,-782.321513,0.00016987,2]
[360048291,1746517846857,-151.0,0.00016987,2]
[360048292,1746517846867,-151.0,0.00016987,2]
[360048293,1746517846876,-151.0,0.00016987,2]
[360048294,1746517846885,-190.092704,0.00016987,2]
[360048295,1746517846895,-151.0,0.00016987,2]
[360048296,1746517846904,-151.0,0.00016987,2]
[360048297,1746517846913,-151.0,0.00016987,2]
[360048298,1746517846923,-151.0,0.00016987,2]
[360048299,1746517846932,-345.785647,0.00016987,2]
[360048300,1746517846942,-345.785647,0.00016987,2]
[360048301,1746517846951,-151.0,0.00016987,2]
[360048302,1746517846961,-151.0,0.00017,2]
[360048303,1746517846970,-160.0,0.00017133,3]
[360048304,1746517846980,-12610.21250885,0.00017133,3]
[360048305,1746517846990,-841.96455721,0.00017133,3]
[360048306,1746517846999,-212.03916285,0.00017133,3]
[360048307,1746517847009,-313.9004746,0.00017133,3]
[360048308,1746517847018,-151.0,0.0001716,2]
[360048309,1746517847028,-151.0,0.0001716,2]
[360048310,1746517847037,-546.0,0.00017261,2]
[360048311,1746517847047,-708.0,0.00017261,2]
[360048312,1746517847056,-2241.0,0.00017261,2]
[360048313,1746517847065,-150.279,0.00017261,2]
[360048314,1746517847075,-6613.22,0.0001736,3]
[360048315,1746517847084,-3306.62,0.0001736,3]
[360048316,1746517847094,-1653.3,0.0001736,3]
[360048317,1746517847103,-826.66,0.0001736,3]
[360048318,1746517847112,-413.32,0.0001736,3]
[360048319,1746517847121,-189.85827677,0.000174,2]
[360048320,1746517847131,-151.0,0.000175,2]
[360048321,1746517847140,-151.0,0.000175,2]
[360048322,1746517847150,-450.0,0.00017517,2]
[360048323,1746517847160,-450.0,0.00017517,2]
[360048324,1746517847169,-151.0,0.00017517,2]
[360048325,1746517847178,-151.0,0.000177,2]
[360048326,1746517847188,-154.859143,0.00017742,2]
[360048327,1746517847198,-154.859143,0.00017742,2]
[360048328,1746517847207,-361.481341,0.00017742,2]
[360048329,1746517847216,-361.481341,0.00017742,2]
[360048330,1746517847226,-1451.1308365,0.00017742,2]
[360048331,1746517847235,-151.0,0.00017742,2]
[360048332,1746517847245,-345.785647,0.00017742,2]
[360048333,1746517847254,-345.785647,0.00017742,2]
[360048334,1746517847263,-151.0,0.00017742,2]
[360048335,1746517847272,-182.76050336,0.0001782,2]
[360048336,1746517847282,-151.0,0.00017832,2]
[360048337,1746517847291,-151.0,0.00017832,2]
[360048338,1746517847300,-782.321513,0.00017832,2]
[360048339,1746517847310,-782.321513,0.00017832,2]
[360048340,1746517847319,-151.0,0.00017892,2]
[360048341,1746517847328,-151.0,0.00017892,2]
[360048342,1746517847337,-151.0,0.00017892,2]
[360048343,1746517847346,-475.513668,0.00017892,2]
[360048344,1746517847356,-475.513668,0.00017892,2]
[360048345,1746517847366,-151.0,0.000179,2]
[360048346,1746517847375,-189.85827677,0.000179,2]
[360048347,1746517847385,-151.0,0.000179,2]
[360048348,1746517847393,-522.6638663,0.00017907,2]
[360048349,1746517847403,-500.0,0.00017973,2]
[360048350,1746517847412,-501.2888067,0.00017973,2]
[360048351,1746517847422,-500.0,0.00017973,2]
[360048352,1746517847431,-500.0,0.00017973,2]
[360048353,1746517847440,-500.0,0.00017973,2]
[360048354,1746517847450,-500.0,0.00017973,2]
[360048355,1746517847459,-500.0,0.00017973,2]
[360048356,1746517847468,-500.0,0.00017973,2]
[360048357,1746517847478,-504.28269327,0.00017973,2]
[360048358,1746517847487,-503.71169461,0.00017973,2]
[360048359,1746517847496,-500.0,0.00017973,2]
[360048360,1746517847506,-485.02881607,0.00017973,2]
[360048361,1746517847515,-500.0,0.00017973,2]
[360048362,1746517847525,-500.0,0.00017973,2]
[360048363,1746517847535,-500.0,0.00017973,2]
[360048364,1746517847545,-500.0,0.00017973,2]
[360048365,1746517847554,-500.0,0.00017973,2]
[360048366,1746517847564,-500.0,0.00017973,2]
[360048367,1746517847574,-500.0,0.00017973,2]
[360048368,1746517847584,-500.0,0.00017973,2]
[360048369,1746517847593,-151.30830134,0.00017973,2]
[360048370,1746517847603,-500.0,0.00017973,2]
[360048371,1746517847612,-500.0,0.00017973,2]
[360048372,1746517847622,-500.0,0.00017973,2]
[360048373,1746517847632,-503.11579557,0.00017973,2]
[360048374,1746517847641,-500.0,0.00017973,2]
[360048375,1746517847652,-500.0,0.00017973,2]
[360048376,1746517847661,-181.9456276,0.00017973,2]
[360048377,1746517847671,-500.0,0.00017973,2]
[360048378,1746517847680,-500.0,0.00017973,2]
[360048379,1746517847689,-500.0,0.00017973,2]
[360048380,1746517847698,-500.0,0.00017973,2]
[360048381,1746517847707,-500.0,0.00017973,2]
[360048382,1746517847717,-500.0,0.00017973,2]
[360048383,1746517847726,-500.0,0.00017973,2]
[360048384,1746517847735,-501.0116261,0.00017973,2]
[360048385,1746517847745,-500.0,0.00017973,2]
[360048386,1746517847754,-591.62995273,0.00017973,2]
[360048387,1746517847763,-298.57110897,0.00017973,2]
[360048388,1746517847772,-500.0,0.00017973,2]
[360048389,1746517847781,-500.0,0.00017973,2]
[360048390,1746517847791,-500.0,0.00017973,2]
[360048391,1746517847800,-504.08207808,0.00017973,2]
[360048392,1746517847809,-623.91099109,0.00017973,2]
[360048393,1746517847819,-500.0,0.00017973,2]
[360048394,1746517847829,-500.0,0.00017973,2]
[360048395,1746517847839,-542.67743645,0.00017973,2]
[360048396,1746517847850,-500.0,0.00017973,2]
[360048397,1746517847860,-500.0,0.00017973,2]
[360048398,1746517847871,-500.0,0.00017973,2]
[360048399,1746517847881,-500.0,0.00017973,2]
[360048400,1746517847890,-500.0,0.00017973,2]
[360048401,1746517847902,-500.0,0.00017973,2]
[360048402,1746517847912,-450.0,0.00017973,2]
[360048403,1746517847921,-450.0,0.00017973,2]
[360048404,1746517847931,-151.0,0.00017973,2]
[360048405,1746517847940,-186.399095,0.00017973,2]
[360048406,1746517847949,-186.399095,0.00017973,2]
[360048407,1746517847959,-151.0,0.00017973,2]
[360048408,1746517847968,-151.0,0.00017973,2]
[360048409,1746517847977,-151.0,0.00017973,2]
[360048410,1746517847987,-151.0,0.00017973,2]
[360048411,1746517847996,-151.0,0.00017973,2]
[360048412,1746517848006,-12141.99072914,0.00017999,2]
[360048413,1746517848019,-12976.50370086,0.00017999,2]
[360048414,1746517848029,-8204.68125274,0.00018,2]
[360048415,1746517848038,-5854.00592626,0.00018,2]
[360048416,1746517848049,-1351.5434118,0.00018,2]
[360048417,1746517848061,-4206.21136439,0.00018,2]
[360048418,1746517848077,-8748.25860229,0.00018,2]
[360048419,1746517848088,-6663.06246394,0.00018,2]
[360048420,1746517848100,-514.60777727,0.00018,2]
[360048421,1746517848111,-15767.63707412,0.00018,2]
[360048422,1746517848122,-4229.68108473,0.00018,2]
[360048423,1746517848134,-1259.57360687,0.00018,2]
[360048424,1746517848146,-3093.55639152,0.00018,2]
[360048425,1746517848161,-7972.13637131,0.00018,2]
[360048435,1746517962402,-251.05341719,0.00012012,2]
[360048436,1746517962424,-500.0,0.00012012,2]
[360048437,1746517962450,-615.40661855,0.00012012,2]
[360048438,1746517962470,-500.0,0.00012012,2]
[360048439,1746517962494,-500.0,0.00012012,2]
[360048440,1746517962519,-431.20702284,0.00012012,2]
[360048441,1746517962540,-486.02284357,0.00012012,2]
[360048442,1746517962573,-500.0,0.00012012,2]
[360048443,1746517962595,-500.0,0.00012012,2]
[360048444,1746517962617,-500.0,0.00012012,2]
[360048445,1746517962638,-500.0,0.00012012,2]
[360048446,1746517962660,-500.0,0.00012012,2]
[360048447,1746517962693,-500.0,0.00012012,2]
[360048448,1746517962714,-371.61208296,0.00012012,2]
[360048449,1746517962736,-407.74584456,0.00012012,2]
[360048450,1746517962759,-500.0,0.00012012,2]
[360048451,1746517962793,-500.0,0.00012012,2]
[360048452,1746517962815,-500.0,0.00012012,2]
[360048453,1746517962848,-500.0,0.00012012,2]
[360048454,1746517962881,-500.0,0.00012012,2]
[360048455,1746517962916,-500.0,0.00012012,2]
[360048456,1746517962950,-562.2402185,0.00012012,2]
[360048457,1746517962971,-470.93886192,0.00012012,2]
[360048458,1746517962994,-300.0,0.00012012,2]
[360048459,1746517963016,-5003.77308991,0.00012013,2]
[360048461,1746518125239,-242.0,0.0001201,2]
[360048462,1746518125455,-300.0,0.0001201,2]
[360048463,1746518125479,-300.0,0.0001201,2]
[360048464,1746518125506,-500.0,0.00012011,2]
[360048465,1746518125530,-329.65720334,0.00012011,2]
[360048466,1746518125554,-175.73739203,0.00012011,2]
[360048467,1746518125579,-380.00637039,0.00012011,2]
[360048468,1746518125601,-500.0,0.00012011,2]
[360048469,1746518125623,-152.40134255,0.00012011,2]
[360048470,1746518125646,-500.0,0.00012011,2]
[360048471,1746518125670,-500.0,0.00012011,2]
[360048472,1746518125691,-500.0,0.00012011,2]
[360048473,1746518125728,-500.0,0.00012011,2]
[360048474,1746518125752,-500.0,0.00012011,2]
[360048475,1746518125775,-500.0,0.00012011,2]
[360048476,1746518125796,-500.0,0.00012011,2]
[360048477,1746518125819,-500.0,0.00012011,2]
[360048478,1746518125840,-323.08287162,0.00012011,2]
[360048479,1746518125876,-500.0,0.00012011,2]
[360048480,1746518125898,-283.44599133,0.00012011,2]
[360048481,1746518125936,-13.66882874,0.00012011,2]
[360048482,1746518175844,-300.0,0.0001201,2]
[360048483,1746518175879,-592.55519311,0.00012011,2]
[360048484,1746518175902,-500.0,0.00012011,2]
[360048485,1746518175937,-500.0,0.00012011,2]
[360048486,1746518175960,-500.0,0.00012011,2]
[360048487,1746518175983,-500.0,0.00012011,2]
[360048488,1746518176017,-500.0,0.00012011,2]
[360048489,1746518176042,-350.76873714,0.00012011,2]
[360048490,1746518176063,-500.0,0.00012011,2]
[360048491,1746518176083,-587.46123205,0.00012011,2]
[360048492,1746518176117,-500.0,0.00012011,2]
[360048493,1746518176149,-500.0,0.00012011,2]
[360048494,1746518176181,-500.0,0.00012011,2]
[360048495,1746518176211,-525.92167036,0.00012011,2]
[360048496,1746518176244,-500.0,0.00012011,2]
[360048497,1746518176277,-500.0,0.00012011,2]
[360048498,1746518176308,-500.0,0.00012011,2]
[360048499,1746518176341,-500.0,0.00012011,2]
[360048500,1746518176374,-500.0,0.00012011,2]
[360048501,1746518176405,-500.0,0.00012011,2]
[360048502,1746518176428,-500.0,0.00012011,2]
[360048503,1746518176451,-500.0,0.00012011,2]
[360048504,1746518176476,-500.0,0.00012011,2]
[360048505,1746518176498,-500.0,0.00012011,2]
[360048506,1746518176521,-500.0,0.00012011,2]